bitfinex/quotes_BTCUSD_20250408
["timestamp","ask_amount","ask_price","bid_price","bid_amount"]
[1744137063135,0.012846,77843.0,77842.0,0.00045926]
[1744137063382,0.012846,77843.0,77842.0,0.00745926]
[1744137063541,0.352846,77843.0,77842.0,0.00545926]
[1744137063958,0.352846,77843.0,77842.0,0.00045926]
[1744137064194,0.352846,77843.0,77842.0,0.00445926]
[1744137064635,0.012846,77843.0,77842.0,0.00445926]
[1744137064851,0.012846,77843.0,77842.0,0.00045926]
[1744137065347,0.012848,77829.0,77828.0,6.6e-07]
[1744137065574,0.73607964,77829.0,77828.0,6.6e-07]
[1744137065807,0.73607964,77829.0,77806.0,0.0003328]
[1744137065808,0.609884,77811.0,77810.0,6.6e-07]
[1744137066027,0.34,77806.0,77801.0,4.6e-07]
[1744137066252,0.609915,77802.0,77801.0,4.6e-07]
[1744137066932,0.73617364,77802.0,77801.0,4.6e-07]
[1744137067125,0.73629862,77802.0,77801.0,4.6e-07]
[1744137068075,0.73929862,77802.0,77801.0,0.00100046]
[1744137068521,0.61003998,77802.0,77801.0,4.6e-07]
[1744137068732,0.73629862,77802.0,77801.0,4.6e-07]
[1744137069221,0.609932,77797.0,77796.0,2.6e-07]
[1744137069460,1.75415064,77797.0,77796.0,2.6e-07]
[1744137069901,0.269929,77800.0,77796.0,2.6e-07]
[1744137070107,0.012853,77797.0,77796.0,2.6e-07]
[1744137070503,0.00312498,77802.0,77796.0,2.6e-07]
[1744137070909,0.00312498,77802.0,77796.0,0.26993426]
[1744137071113,0.00312498,77802.0,77796.0,2.6e-07]
[1744137071369,0.00012498,77802.0,77801.0,0.28445985]
[1744137071607,0.00012498,77802.0,77796.0,2.6e-07]
[1744137071975,0.269932,77797.0,77796.0,2.6e-07]
[1744137072152,0.00012498,77802.0,77796.0,2.6e-07]
[1744137072894,0.00012498,77802.0,77800.0,0.257067]
[1744137073124,0.257071,77800.0,77796.0,2.6e-07]
[1744137073428,0.01297798,77802.0,77796.0,2.6e-07]
[1744137073429,0.00012498,77802.0,77801.0,0.01454085]
[1744137073581,0.00012498,77802.0,77796.0,0.00500026]
[1744137073765,0.269922,77800.0,77796.0,0.01000026]
[1744137073964,0.00012498,77802.0,77801.0,0.012853]
[1744137074242,0.00012498,77802.0,77801.0,0.15622283]
[1744137074391,0.257066,77801.0,77796.0,0.01000026]
[1744137074730,0.257066,77801.0,77796.0,0.00500026]
[1744137074731,0.012853,77797.0,77796.0,0.00500026]
[1744137074876,0.47911164,77797.0,77796.0,2.6e-07]
[1744137075073,0.47911164,77797.0,77771.0,0.0004]
[1744137075074,0.270019,77772.0,77771.0,0.0004]
[1744137075481,0.29380175,77772.0,77771.0,0.0004]
[1744137075884,0.29380175,77772.0,77771.0,1e-06]
[1744137075885,0.76006039,77772.0,77771.0,1e-06]
[1744137076111,0.610044,77765.0,77750.0,0.0003328]
[1744137076313,0.73630264,77765.0,77750.0,0.0003328]
[1744137076516,0.76008539,77765.0,77750.0,0.0003328]
[1744137076735,0.76008539,77765.0,77764.0,4e-07]
[1744137076922,0.49004139,77765.0,77764.0,4e-07]
[1744137077284,0.50290039,77765.0,77764.0,4e-07]
[1744137077489,0.50290039,77765.0,77742.0,0.00257233]
[1744137077698,0.50290039,77765.0,77662.0,0.29352]
[1744137077699,0.012872,77682.0,77662.0,0.29352]
[1744137077909,0.005,77672.0,77671.0,0.012874]
[1744137078115,0.12368631,77682.0,77678.0,0.012873]
[1744137078324,0.00257233,77681.0,77677.0,0.012873]
[1744137078498,0.257416,77695.0,77677.0,0.012873]
[1744137078732,0.00257233,77694.0,77686.0,0.012872]
[1744137078932,0.00257233,77694.0,77680.0,0.012873]
[1744137078933,0.012867,77718.0,77701.0,0.012869]
[1744137079140,0.00257233,77717.0,77703.0,0.012869]
[1744137079344,0.85913966,77740.0,77702.0,1.031429]
[1744137079345,0.0472,77756.0,77705.0,0.012869]
[1744137079538,0.00257233,77746.0,77715.0,0.01454085]
[1744137079742,0.012862,77746.0,77743.0,0.01454085]
[1744137079950,0.257254,77744.0,77731.0,0.00257214]
[1744137080124,0.012862,77745.0,77714.0,0.05]
[1744137080125,0.012865,77730.0,77722.0,0.2936]
[1744137080326,0.257363,77711.0,77691.0,0.2936]
[1744137080590,0.257407,77698.0,77691.0,0.2936]
[1744137080787,0.3404,77729.0,77715.0,0.009]
[1744137080988,0.0004,77729.0,77717.0,0.01454085]
[1744137081210,0.270571,77729.0,77719.0,0.01454085]
[1744137081329,0.270571,77729.0,77721.0,0.02740685]
[1744137081330,0.0004,77729.0,77721.0,0.02740685]
[1744137081535,0.0004,77729.0,77716.0,0.012867]
[1744137081536,0.0004,77729.0,77723.0,0.01454085]
[1744137081741,0.0004,77729.0,77724.0,0.12625864]
[1744137082000,0.013265,77729.0,77690.0,0.0094585]
[1744137082150,0.012869,77703.0,77698.0,0.12625864]
[1744137082355,0.012868,77712.0,77699.0,0.01287]
[1744137082556,0.012868,77709.0,77700.0,0.12625864]
[1744137082740,0.00012472,77703.0,77700.0,0.12625864]
[1744137083385,0.00012472,77703.0,77701.0,0.01711466]
[1744137083587,0.00012472,77703.0,77702.0,0.41106149]
[1744137083787,0.00012472,77703.0,77702.0,0.14079949]
[1744137084127,0.00012472,77703.0,77702.0,0.15366849]
[1744137084259,0.00112472,77703.0,77702.0,0.14079949]
[1744137084463,0.00112472,77703.0,77702.0,0.14337305]
[1744137084665,0.00012472,77703.0,77702.0,0.14079949]
[1744137085331,0.00012472,77703.0,77702.0,0.12625864]
[1744137085513,0.00012472,77703.0,77702.0,0.13912764]
[1744137085663,0.00112472,77703.0,77702.0,0.16524206]
[1744137085871,0.27138372,77703.0,77702.0,0.009]
[1744137086068,0.27138372,77703.0,77702.0,0.018]
[1744137086278,0.61138372,77703.0,77702.0,0.018]
[1744137086578,0.73764236,77703.0,77702.0,0.009]
[1744137086772,0.73764236,77703.0,77662.0,0.012876]
[1744137086773,0.46738336,77703.0,77657.0,1.02846609]
[1744137086974,0.012874,77671.0,77659.0,0.257533]
[1744137087171,0.012874,77670.0,77660.0,0.12625864]
[1744137087380,0.012875,77665.0,77660.0,0.12625864]
[1744137087582,0.270413,77659.0,77657.0,1.019]
[1744137087782,0.012876,77661.0,77651.0,0.0004]
[1744137087783,0.012877,77652.0,77651.0,0.0004]
[1744137088406,0.01300161,77652.0,77651.0,0.0004]
[1744137088783,0.01557394,77652.0,77651.0,0.0004]
[1744137089889,0.00269694,77652.0,77651.0,0.0004]
[1744137090095,0.00012461,77652.0,77651.0,0.0054]
[1744137090268,0.00012461,77652.0,77651.0,0.15907749]
[1744137090468,0.00112461,77652.0,77651.0,0.1656524]
[1744137090669,0.00112461,77652.0,77651.0,0.17554512]
[1744137090893,0.00012461,77652.0,77651.0,0.16397021]
[1744137091175,0.00012461,77652.0,77651.0,0.15607749]
[1744137091309,0.00012461,77652.0,77651.0,0.41621444]
[1744137091525,0.257452,77685.0,77675.0,0.01454085]
[1744137091722,0.257476,77677.0,77675.0,0.14079949]
[1744137091922,0.257505,77669.0,77666.0,0.01454085]
[1744137092143,0.257472,77679.0,77668.0,0.01454085]
[1744137092369,0.257502,77669.0,77668.0,0.12625864]
[1744137092704,0.257512,77666.0,77665.0,1.03410085]
[1744137092884,0.257479,77676.0,77675.0,0.003]
[1744137093021,0.257511,77667.0,77666.0,0.01454085]
[1744137093225,0.257511,77667.0,77666.0,0.14079949]
[1744137093484,0.257511,77667.0,77665.0,1.01956]
[1744137093485,0.257523,77663.0,77659.0,0.01454085]
[1744137093712,0.257526,77662.0,77661.0,0.01454085]
[1744137093864,0.257526,77662.0,77661.0,0.14079949]
[1744137094396,0.257522,77663.0,77661.0,0.14079949]
[1744137094567,0.257522,77663.0,77662.0,0.14079949]
[1744137094769,0.257523,77664.0,77658.0,0.29434073]
[1744137094770,0.257529,77661.0,77658.0,0.29434073]
[1744137094970,0.257536,77659.0,77658.0,0.29434073]
[1744137095174,0.270412,77659.0,77658.0,0.00042073]
[1744137095382,0.610412,77659.0,77658.0,7.3e-07]
[1744137096386,0.270548,77620.0,77584.0,0.307583]
[1744137096723,0.270548,77620.0,77571.0,0.012891]
[1744137096724,0.257748,77595.0,77571.0,0.012891]
[1744137096926,0.257748,77595.0,77594.0,0.00058622]
[1744137097087,0.257748,77595.0,77594.0,0.12684486]
[1744137097548,0.257748,77595.0,77594.0,2.2e-07]
[1744137097549,0.270635,77595.0,77594.0,2.2e-07]
[1744137098248,0.001,77595.0,77594.0,0.12725886]
[1744137098456,0.258748,77595.0,77594.0,0.12725886]
[1744137098594,0.257748,77595.0,77594.0,0.12625886]
[1744137098992,0.257748,77595.0,77594.0,0.00600022]
[1744137099494,0.264748,77595.0,77594.0,0.00100022]
[1744137099707,0.007,77595.0,77594.0,0.14379971]
[1744137100478,0.007,77595.0,77594.0,0.41243771]
[1744137100816,0.25772,77604.0,77595.0,0.01454085]
[1744137100994,0.257727,77602.0,77597.0,0.01454085]
[1744137101193,0.257738,77598.0,77597.0,0.01454085]
[1744137101364,0.257737,77599.0,77598.0,0.01454085]
[1744137101719,0.257737,77599.0,77594.0,2.2e-07]
[1744137101720,0.012886,77598.0,77594.0,2.2e-07]
[1744137101894,0.257748,77595.0,77594.0,2.2e-07]
[1744137102094,0.257748,77595.0,77594.0,0.12625886]
[1744137102301,0.257748,77595.0,77594.0,0.14079971]
[1744137102503,0.270635,77595.0,77594.0,2.2e-07]
[1744137103740,0.257748,77595.0,77594.0,2.2e-07]
[1744137103909,0.270635,77595.0,77594.0,0.00200022]
[1744137104270,0.270645,77592.0,77591.0,2.2e-07]
[1744137104552,0.352888,77588.0,77587.0,2e-08]
[1744137105740,0.257768,77590.0,77587.0,2e-08]
[1744137105741,0.00041805,77595.0,77587.0,2e-08]
[1744137105945,0.257762,77592.0,77589.0,0.01454085]
[1744137106277,0.012888,77590.0,77587.0,2e-08]
[1744137106479,0.257771,77588.0,77587.0,2e-08]
[1744137106831,0.257771,77588.0,77587.0,0.00100002]
[1744137107033,0.257771,77588.0,77587.0,0.01554087]
[1744137107243,0.257771,77588.0,77587.0,0.14179951]
[1744137107445,0.257754,77594.0,77588.0,0.01454085]
[1744137107669,0.515368,77616.0,77589.0,0.12883616]
[1744137107670,0.012886,77600.0,77589.0,0.12883616]
[1744137107866,0.001,77592.0,77588.0,0.01454085]
[1744137108019,0.001,77592.0,77590.0,0.01454085]
[1744137108218,0.001,77592.0,77591.0,0.14079949]
[1744137108425,0.00041805,77595.0,77587.0,2e-08]
[1744137108426,0.001,77590.0,77589.0,0.257768]
[1744137108625,0.00041805,77595.0,77594.0,0.257751]
[1744137108828,0.00041805,77595.0,77594.0,0.41143749]
[1744137109684,0.012881,77631.0,77618.0,0.012883]
[1744137109885,0.257662,77621.0,77619.0,0.42187949]
[1744137110027,0.257642,77630.0,77623.0,0.01454085]
[1744137110225,0.257645,77626.0,77625.0,0.01454085]
[1744137110430,0.257695,77612.0,77611.0,0.01454085]
[1744137110651,0.270569,77615.0,77611.0,0.01454085]
[1744137110652,0.257685,77615.0,77611.0,0.01454085]
[1744137110858,0.012881,77633.0,77621.0,0.270542]
[1744137111100,0.012881,77633.0,77613.0,0.01454085]
[1744137111101,0.012882,77626.0,77613.0,0.01454085]
[1744137111302,0.270565,77616.0,77611.0,0.00012461]
[1744137111501,0.52169595,77640.0,77613.0,0.01454085]
[1744137111502,0.009,77626.0,77613.0,0.01454085]
[1744137111678,0.009,77626.0,77617.0,0.01454085]
[1744137111891,0.01288,77636.0,77621.0,0.012883]
[1744137112091,0.270519,77629.0,77623.0,0.01454085]
[1744137112291,0.270519,77629.0,77623.0,0.14079949]
[1744137112292,0.257649,77625.0,77623.0,0.14079949]
[1744137112495,0.257649,77625.0,77611.0,0.01300861]
[1744137112496,0.012882,77625.0,77611.0,0.00012461]
[1744137112673,0.002,77626.0,77625.0,0.012882]
[1744137112879,0.012882,77624.0,77623.0,0.01454085]
[1744137113081,0.012882,77624.0,77611.0,0.27235946]
[1744137113082,0.257658,77622.0,77611.0,0.27235946]
[1744137113302,0.257685,77615.0,77613.0,0.01454085]
[1744137113474,0.012882,77623.0,77614.0,0.12625864]
[1744137113696,0.012882,77623.0,77611.0,0.00012461]
[1744137113697,0.270576,77612.0,77611.0,0.00012461]
[1744137113899,0.012883,77621.0,77611.0,0.12638325]
[1744137114100,0.257686,77614.0,77613.0,0.01454085]
[1744137114301,0.257686,77614.0,77611.0,0.00012461]
[1744137114507,0.002,77625.0,77621.0,0.01454085]
[1744137114861,0.259656,77623.0,77621.0,0.14079949]
[1744137115064,0.002,77623.0,77614.0,0.28510985]
[1744137115184,0.002,77623.0,77616.0,0.02742385]
[1744137115390,0.012882,77625.0,77617.0,0.12625864]
[1744137115591,0.257652,77624.0,77617.0,0.12625864]
[1744137115793,0.012882,77625.0,77624.0,0.01454085]
[1744137115794,0.002,77625.0,77624.0,0.01454085]
[1744137116012,0.002,77625.0,77624.0,0.14079949]
[1744137116214,0.012881,77630.0,77625.0,0.01454085]
[1744137116433,0.257643,77627.0,77626.0,0.12625864]
[1744137116850,0.012882,77627.0,77614.0,0.012884]
[1744137117050,0.006,77625.0,77623.0,0.257655]
[1744137117261,0.006,77625.0,77624.0,0.15368149]
[1744137117396,0.006,77625.0,77624.0,0.15625779]
[1744137117600,0.0004,77639.0,77638.0,0.28502585]
[1744137117819,0.0004,77639.0,77638.0,0.69232449]
[1744137118658,0.0004,77639.0,77638.0,0.75106263]
[1744137118833,0.0094,77639.0,77638.0,1.09218724]
[1744137119042,0.0094,77639.0,77638.0,0.48170224]
[1744137119217,0.0094,77639.0,77638.0,0.49458224]
[1744137119812,0.0094,77639.0,77638.0,0.4358441]
[1744137120035,0.0094,77639.0,77638.0,0.49958224]
[1744137120266,0.02228,77639.0,77638.0,0.13238325]
[1744137120463,0.0094,77639.0,77638.0,0.00612461]
[1744137120677,0.0004,77639.0,77638.0,0.01800461]
[1744137120880,0.0004,77639.0,77638.0,0.00912461]
[1744137121094,0.0004,77639.0,77638.0,0.14826325]
[1744137121311,0.0007364,77669.0,77668.0,0.270381]
[1744137121529,0.0007364,77669.0,77668.0,0.14079949]
[1744137121748,0.0007364,77669.0,77657.0,0.27452]
[1744137121749,0.012875,77665.0,77657.0,0.27452]
[1744137121980,0.0007364,77669.0,77668.0,0.270381]
[1744137122199,0.257506,77668.0,77651.0,0.012878]
[1744137122418,0.270444,77650.0,77642.0,0.27452]
[1744137122656,0.012877,77656.0,77650.0,0.01454085]
[1744137122868,0.00257233,77668.0,77656.0,0.01454085]
[1744137123062,0.3517364,77669.0,77659.0,0.01454085]
[1744137123063,0.0137364,77669.0,77659.0,0.01454085]
[1744137123289,0.0137364,77669.0,77666.0,0.257509]
[1744137123502,0.0137364,77669.0,77668.0,0.02741585]
[1744137123703,0.0137364,77669.0,77668.0,0.15624925]
[1744137123940,0.0047364,77669.0,77668.0,0.15624903]
[1744137124082,0.0047364,77669.0,77668.0,0.15624888]
[1744137124298,0.0007364,77669.0,77668.0,0.16339399]
[1744137124920,0.0047364,77669.0,77668.0,0.15367449]
[1744137125366,0.0067364,77669.0,77668.0,0.15624927]
[1744137125841,0.0067364,77669.0,77668.0,0.15367449]
[1744137126291,4e-07,77669.0,77668.0,0.21241263]
[1744137126460,4e-07,77669.0,77668.0,0.21498715]
[1744137126813,0.012865,77727.0,77698.0,0.28481685]
[1744137127021,0.0004,77729.0,77728.0,0.257307]
[1744137127225,0.0004,77729.0,77722.0,0.270191]
[1744137127226,0.0004,77729.0,77724.0,0.257318]
[1744137127431,0.0004,77729.0,77720.0,0.01454085]
[1744137127605,0.012865,77727.0,77679.0,0.34]
[1744137127814,0.012867,77718.0,77709.0,0.257369]
[1744137127988,0.00081883,77729.0,77723.0,0.012866]
[1744137128177,0.00257233,77728.0,77693.0,0.257421]
[1744137128374,0.00257233,77728.0,77670.0,0.52169595]
[1744137128375,0.012871,77694.0,77682.0,0.012872]
[1744137128575,0.012872,77683.0,77679.0,0.27444]
[1744137128776,0.257454,77684.0,77679.0,0.27444]
[1744137128980,0.257442,77688.0,77680.0,0.02741385]
[1744137129224,0.0004,77729.0,77697.0,0.01287]
[1744137129225,0.012868,77707.0,77697.0,0.01287]
[1744137129454,0.0476,77719.0,77706.0,0.012869]
[1744137129673,0.046,77726.0,77721.0,0.012866]
[1744137129814,0.0014,77729.0,77728.0,0.012865]
[1744137130176,0.257308,77728.0,77726.0,0.01454085]
[1744137130386,0.270235,77710.0,77709.0,0.003]
[1744137130734,0.270235,77710.0,77666.0,0.4159]
[1744137130735,0.012871,77693.0,77687.0,0.27436]
[1744137130933,0.012872,77687.0,77680.0,0.012873]
[1744137131130,0.257448,77686.0,77682.0,0.01454085]
[1744137131335,0.257448,77686.0,77676.0,0.257476]
[1744137131336,0.012874,77675.0,77674.0,0.27436]
[1744137131578,0.257475,77678.0,77674.0,0.40061864]
[1744137131796,0.270342,77680.0,77676.0,0.01454085]
[1744137131948,0.257481,77676.0,77674.0,0.27436]
[1744137132162,0.012873,77681.0,77674.0,0.27436]
[1744137132163,0.34,77694.0,77682.0,0.012872]
[1744137132352,0.012872,77685.0,77681.0,0.01454085]
[1744137132548,0.012872,77688.0,77682.0,0.12625864]
[1744137132753,0.257442,77688.0,77682.0,0.38571464]
[1744137132970,0.01287,77697.0,77689.0,0.257434]
[1744137133178,0.257409,77698.0,77693.0,0.01454085]
[1744137133411,0.01544033,77707.0,77693.0,0.01454085]
[1744137133412,0.012867,77714.0,77693.0,0.15367049]
[1744137133589,0.012869,77703.0,77693.0,0.14079949]
[1744137133788,0.270328,77683.0,77662.0,0.012876]
[1744137134046,0.257471,77679.0,77669.0,0.257501]
[1744137134220,0.257465,77681.0,77670.0,0.38375664]
[1744137134421,0.257465,77681.0,77664.0,0.012875]
[1744137134422,0.270352,77676.0,77666.0,0.257509]
[1744137134626,0.25748,77676.0,77671.0,0.257495]
[1744137134827,0.257487,77674.0,77669.0,0.257502]
[1744137135027,0.352872,77682.0,77670.0,0.12625864]
[1744137135232,0.270348,77678.0,77671.0,0.01454085]
[1744137135434,0.257486,77674.0,77671.0,0.01454085]
[1744137135613,0.270347,77678.0,77671.0,0.01454085]
[1744137135811,0.257476,77677.0,77672.0,0.257492]
[1744137136036,0.514741,77709.0,77685.0,0.01454085]
[1744137136240,0.01287,77698.0,77691.0,0.012871]
[1744137136448,0.0476,77726.0,77693.0,0.02741185]
[1744137136616,0.0476,77726.0,77680.0,0.012873]
[1744137136617,0.012871,77691.0,77680.0,0.012873]
[1744137136838,0.270302,77691.0,77685.0,0.257448]
[1744137137086,0.00041857,77694.0,77693.0,0.257423]
[1744137137396,0.00041857,77694.0,77693.0,0.15367049]
[1744137137596,0.00641857,77694.0,77693.0,0.15624454]
[1744137137837,5.7e-07,77694.0,77693.0,0.15367049]
[1744137137964,0.012868,77710.0,77701.0,0.012869]
[1744137138166,0.012869,77702.0,77701.0,0.12625864]
[1744137138369,0.002,77694.0,77693.0,0.02741185]
[1744137138575,0.002,77694.0,77693.0,0.15367049]
[1744137138771,0.002,77694.0,77687.0,0.012872]
[1744137138772,0.014871,77694.0,77684.0,0.02741285]
[1744137138990,0.012871,77692.0,77685.0,0.12625864]
[1744137139171,0.012871,77692.0,77688.0,0.01454085]
[1744137139367,0.012871,77689.0,77665.0,1.02008]
[1744137139573,0.01287,77695.0,77681.0,0.39409864]
[1744137139772,0.257451,77685.0,77681.0,0.39409864]
[1744137140028,0.270362,77674.0,77668.0,0.257505]
[1744137140182,0.25748,77676.0,77672.0,0.257492]
[1744137140391,0.25748,77676.0,77670.0,0.012874]
[1744137140608,0.257483,77675.0,77670.0,0.39662964]
[1744137140850,0.01461154,77721.0,77671.0,0.012874]
[1744137141025,0.270338,77681.0,77671.0,0.12625864]
[1744137141201,0.00012544,77687.0,77680.0,0.01454085]
[1744137141408,0.012872,77685.0,77680.0,0.01454085]
[1744137141616,0.25756844,77687.0,77682.0,0.02741285]
[1744137141990,0.25756844,77687.0,77686.0,0.01454085]
[1744137141991,0.00012544,77687.0,77686.0,0.01454085]
[1744137142195,0.00012544,77687.0,77686.0,0.15367149]
[1744137142369,0.00012544,77687.0,77684.0,0.27199385]
[1744137142599,0.00012544,77687.0,77686.0,0.15367149]
[1744137143431,4.4e-07,77687.0,77686.0,0.15624514]
[1744137143836,4.4e-07,77687.0,77686.0,0.15624494]
[1744137144179,4.4e-07,77687.0,77686.0,0.17510675]
[1744137144356,4.4e-07,77687.0,77686.0,0.17338989]
[1744137144561,4.4e-07,77687.0,77686.0,0.16538989]
[1744137144762,4.4e-07,77687.0,77686.0,0.43322989]
[1744137144974,4.4e-07,77687.0,77686.0,0.43051149]
[1744137145252,4.4e-07,77687.0,77686.0,0.42951149]
[1744137145736,4.4e-07,77687.0,77686.0,0.42297064]
[1744137146162,4.4e-07,77687.0,77686.0,0.43751149]
[1744137146322,4.4e-07,77687.0,77686.0,0.40209864]
[1744137146484,4.4e-07,77687.0,77686.0,0.13425864]
[1744137146694,0.25744344,77687.0,77686.0,0.016]
[1744137146901,4.4e-07,77687.0,77686.0,0.008]
[1744137147299,4.4e-07,77687.0,77686.0,0.04441285]
[1744137147525,4.4e-07,77687.0,77686.0,0.16167149]
[1744137147720,4.4e-07,77687.0,77686.0,0.15624554]
[1744137147952,4.4e-07,77687.0,77686.0,0.16424554]
[1744137148178,4.4e-07,77687.0,77686.0,0.16124554]
[1744137148361,4.4e-07,77687.0,77686.0,0.15867149]
[1744137148525,4.4e-07,77687.0,77686.0,0.16124543]
[1744137148912,4.4e-07,77687.0,77686.0,0.15867149]
[1744137149114,4.4e-07,77687.0,77686.0,0.41611749]
[1744137149370,4.4e-07,77687.0,77686.0,0.41111749]
[1744137149800,4.4e-07,77687.0,77686.0,0.41211749]
[1744137150401,4.4e-07,77687.0,77686.0,0.75211749]
[1744137151018,4.4e-07,77687.0,77686.0,0.75511749]
[1744137151162,4.4e-07,77687.0,77686.0,0.76455244]
[1744137151364,0.047936,77726.0,77725.0,0.270182]
[1744137151365,0.000336,77726.0,77725.0,0.270182]
[1744137151569,0.01332642,77726.0,77725.0,0.01454085]
[1744137151972,0.270217,77715.0,77714.0,0.2612]
[1744137152168,0.012866,77724.0,77716.0,0.012867]
[1744137152490,0.270214,77716.0,77715.0,0.01454085]
[1744137152697,0.012864,77731.0,77724.0,0.257319]
[1744137152951,0.020336,77732.0,77725.0,0.15366449]
[1744137153156,0.020336,77732.0,77725.0,0.41355439]
[1744137153370,0.020336,77732.0,77725.0,0.41098149]
[1744137153516,4.2e-07,77726.0,77725.0,0.41098149]
[1744137153715,4.2e-07,77726.0,77725.0,0.4321635]
[1744137154128,4.2e-07,77726.0,77725.0,0.42274975]
[1744137154307,0.020336,77732.0,77728.0,0.28471285]
[1744137154501,0.020336,77732.0,77728.0,0.41097149]
[1744137154701,0.277632,77732.0,77728.0,0.14079949]
[1744137154948,0.020336,77732.0,77728.0,0.15366449]
[1744137155884,0.020336,77732.0,77731.0,0.270161]
[1744137156144,1e-06,77732.0,77731.0,0.41096049]
[1744137156967,0.34,77762.0,77757.0,0.25721]
[1744137157170,0.00012539,77762.0,77758.0,0.14079949]
[1744137157413,0.257203,77760.0,77758.0,0.14079949]
[1744137157613,0.00012539,77762.0,77623.0,0.5]
[1744137157614,0.012863,77738.0,77731.0,0.005]
[1744137157813,0.257274,77740.0,77735.0,0.257283]
[1744137157987,0.257272,77739.0,77736.0,0.12625864]
[1744137158192,0.257276,77738.0,77736.0,0.12625864]
[1744137158394,0.257256,77744.0,77738.0,0.012863]
[1744137158597,0.05,77790.0,77749.0,0.01454085]
[1744137158859,0.257231,77751.0,77749.0,0.01454085]
[1744137159063,0.012861,77752.0,77739.0,0.12625864]
[1744137159064,0.012861,77750.0,77742.0,0.01454085]
[1744137159183,0.01286,77757.0,77744.0,0.01454085]
[1744137159387,0.257244,77747.0,77746.0,0.01454085]
[1744137159585,0.012863,77738.0,77731.0,0.004]
[1744137159802,0.34,77758.0,77731.0,0.004]
[1744137159803,0.34,77758.0,77741.0,0.270125]
[1744137160070,0.257225,77753.0,77748.0,0.01454085]
[1744137160321,0.257294,77732.0,77731.0,0.002]
[1744137160784,0.05,77782.0,77748.0,0.25724]
[1744137161022,0.2572,77761.0,77751.0,0.02740185]
[1744137161249,0.52169595,77790.0,77762.0,0.27173385]
[1744137161473,0.257166,77771.0,77763.0,0.15365849]
[1744137161709,0.013255,77789.0,77763.0,0.15623007]
[1744137161944,0.00029339,77764.0,77763.0,0.15623007]
[1744137162167,0.00029339,77764.0,77763.0,0.15365849]
[1744137162613,0.00029339,77764.0,77763.0,0.15623005]
[1744137163323,0.00029339,77764.0,77763.0,0.15622973]
[1744137163608,0.00229339,77764.0,77763.0,0.15365849]
[1744137163865,0.00229339,77764.0,77763.0,0.15622981]
[1744137164068,0.00229339,77764.0,77763.0,0.15365849]
[1744137165076,0.00229339,77764.0,77763.0,0.15622966]
[1744137165276,0.00229339,77764.0,77763.0,0.15365849]
[1744137165498,0.00029339,77764.0,77763.0,0.15465849]
[1744137165931,3.9e-07,77764.0,77763.0,0.49722965]
[1744137166192,0.0004,77789.0,77788.0,0.28450485]
[1744137166396,0.00081782,77789.0,77788.0,0.14079949]
[1744137166852,0.27077782,77789.0,77788.0,0.14079949]
[1744137167075,0.01367282,77789.0,77788.0,0.01454085]
[1744137167734,0.01367282,77789.0,77788.0,0.01554085]
[1744137167980,0.270012,77774.0,77773.0,0.25476]
[1744137168261,0.012856,77782.0,77773.0,0.38101864]
[1744137168464,0.257125,77784.0,77776.0,0.01454085]
[1744137168672,0.257111,77788.0,77782.0,0.01454085]
[1744137168877,0.257124,77784.0,77783.0,0.14079949]
[1744137169077,0.257155,77774.0,77773.0,0.25476]
[1744137169280,0.257155,77774.0,77758.0,0.257207]
[1744137169281,0.012857,77774.0,77742.0,0.0482]
[1744137169421,0.257234,77750.0,77743.0,0.257257]
[1744137169635,0.012857,77773.0,77759.0,0.01286]
[1744137169862,0.257121,77785.0,77777.0,0.012857]
[1744137170040,0.257171,77770.0,77768.0,0.25472]
[1744137170301,0.01286,77760.0,77749.0,0.524818]
[1744137170555,0.257257,77743.0,77727.0,0.257307]
[1744137170797,0.61013,77740.0,77725.0,0.25472]
[1744137171024,0.61013,77740.0,77716.0,0.257347]
[1744137171025,0.012865,77729.0,77716.0,0.257347]
[1744137171288,0.27019,77723.0,77711.0,0.0004]
[1744137171522,0.61019,77723.0,77711.0,0.0004]
[1744137172006,0.270228,77712.0,77711.0,0.0004]
[1744137172482,0.610228,77712.0,77711.0,0.00052539]
[1744137173895,0.612228,77712.0,77711.0,0.00152539]
[1744137174438,0.610273,77699.0,77698.0,0.11112721]
[1744137174702,0.610273,77699.0,77698.0,0.11125263]
[1744137175194,0.610273,77699.0,77698.0,0.00012542]
[1744137175969,0.610273,77699.0,77681.0,0.0004]
[1744137175970,0.610331,77682.0,77681.0,0.0004]
[1744137176199,0.610331,77682.0,77681.0,0.00081857]
[1744137176458,0.73658964,77682.0,77681.0,5.7e-07]
[1744137176695,0.012876,77660.0,77655.0,0.000336]
[1744137176930,0.012876,77663.0,77655.0,0.000336]
[1744137176931,0.270399,77663.0,77655.0,0.000336]
[1744137177188,0.257546,77656.0,77655.0,0.000336]
[1744137177408,0.012876,77660.0,77655.0,0.000336]
[1744137177582,0.257538,77659.0,77655.0,0.257883]
[1744137177783,0.270421,77657.0,77655.0,0.000336]
[1744137177981,0.257539,77658.0,77655.0,0.000336]
[1744137178184,0.270423,77657.0,77655.0,0.000336]
[1744137178381,0.012877,77656.0,77655.0,0.000336]
[1744137178546,0.352877,77656.0,77655.0,0.00046144]
[1744137178785,0.012878,77649.0,77648.0,4.4e-07]
[1744137178990,0.012882,77626.0,77617.0,0.257675]
[1744137179288,0.012882,77622.0,77621.0,0.12678325]
[1744137179519,0.012882,77622.0,77621.0,0.00052461]
[1744137179848,0.270536,77624.0,77621.0,0.00052461]
[1744137180091,0.012879,77641.0,77633.0,0.012881]
[1744137180290,0.01033677,77634.0,77633.0,0.012881]
[1744137180436,0.34,77638.0,77636.0,0.270492]
[1744137180632,0.34,77638.0,77637.0,0.01454085]
[1744137180835,0.012882,77625.0,77621.0,0.00052461]
[1744137181046,0.27054,77622.0,77621.0,0.00052461]
[1744137181277,0.012881,77630.0,77621.0,0.00052461]
[1744137181478,0.002,77641.0,77634.0,0.01288]
[1744137181678,0.002,77641.0,77622.0,0.12625864]
[1744137181679,0.34,77637.0,77635.0,0.01454085]
[1744137181886,0.597612,77637.0,77635.0,0.01454085]
[1744137182089,0.01288,77635.0,77631.0,0.01454085]
[1744137182313,0.01288,77635.0,77629.0,0.01454085]
[1744137182516,1.06944,77667.0,77635.0,0.02742085]
[1744137182517,0.02027019,77641.0,77635.0,0.02742085]
[1744137182883,0.020879,77641.0,77640.0,0.01454085]